bitfinex/quotes_ETHUSD_20240922
["timestamp","ask_amount","ask_price","bid_price","bid_amount"]
[1727035796040,0.14314074,2583.2,2583.1,9.33791]
[1727035796328,0.0377987,2583.2,2583.1,9.33791]
[1727035801224,0.0377987,2583.2,2583.1,6.87131]
[1727035801825,0.1432151,2583.2,2583.1,6.87131]
[1727035804965,0.1432151,2583.2,2583.1,6.94872316]
[1727035805464,0.1432151,2583.2,2583.1,6.87131]
[1727035805663,0.1432151,2583.2,2583.1,6.94872319]
[1727035810482,0.1432151,2583.2,2583.1,9.26431]
[1727035810841,0.0377987,2583.2,2583.1,9.26431]
[1727035811942,0.0377987,2583.2,2583.1,6.87131]
[1727035812144,0.0377987,2583.2,2582.8,3.87175]
[1727035812379,0.0377987,2583.2,2582.6,2.393]
[1727035812380,6.20725,2583.1,2582.6,3.87191]
[1727035812580,6.31181927,2583.1,2582.6,3.87191]
[1727035812756,6.31177927,2583.1,2582.6,3.87191]
[1727035812958,3.87147,2583.0,2582.4,3.87223]
[1727035813169,0.10440187,2583.0,2582.6,3.87206]
[1727035813858,2.3358,2582.9,2582.6,3.87206]
[1727035814275,0.10423447,2582.8,2582.6,3.87206]
[1727035815394,0.10423447,2582.8,2582.5,3.0]
[1727035815757,0.10423447,2582.8,2582.7,3.87191]
[1727035817257,2.3358,2582.9,2582.8,3.87176]
[1727035817461,0.0377987,2583.2,2582.5,0.687223]
[1727035817462,2.3735987,2583.2,2583.0,3.87145]
[1727035817711,2.3735987,2583.2,2583.1,3.87131]
[1727035817909,0.0377987,2583.2,2583.1,6.87131]
[1727035818190,0.0377987,2583.2,2583.1,7.36834932]
[1727035819283,0.0377987,2583.2,2583.1,7.29093479]
[1727035820091,2.3735987,2583.2,2582.9,3.0]
[1727035820304,2.3735987,2583.2,2582.8,3.87167]
[1727035820595,2.3735987,2583.2,2583.0,3.87145]
[1727035820896,2.3735987,2583.2,2583.0,3.87139]
[1727035821196,2.3735987,2583.2,2583.0,7.74277]
[1727035821777,2.3735987,2583.2,2583.0,7.74276]
[1727035822055,2.3735987,2583.2,2583.0,3.87138]
[1727035822755,0.10424377,2583.1,2583.0,3.87138]
[1727035823152,0.10424377,2583.1,2582.8,3.87165]
[1727035823351,2.3735987,2583.2,2582.7,3.0]
[1727035823594,0.10424377,2583.0,2582.7,3.0]
[1727035823897,2.3735987,2583.2,2582.7,3.0]
[1727035824093,0.10424377,2582.9,2582.7,3.0]
[1727035824263,2.3735987,2583.2,2582.8,3.87176]
[1727035826109,2.3735987,2583.2,2582.9,3.94891848]
[1727035826417,2.3735987,2583.2,2583.0,3.87132]
[1727035826418,0.0377987,2583.2,2583.0,3.87132]
[1727035826716,0.0377987,2583.2,2582.8,3.87176]
[1727035827066,0.0377987,2583.2,2582.8,3.9491846]
[1727035827471,0.0377987,2583.2,2582.9,3.87159]
[1727035828316,0.0377987,2583.2,2582.8,0.0774246]
[1727035828611,0.0377987,2583.2,2582.7,6.87177]
[1727035828612,6.34704,2583.1,2582.6,3.87196]
[1727035829506,2.4757,2582.6,2582.2,7.35]
[1727035829706,3.8723,2582.5,2582.1,0.39566291]
[1727035829933,3.8723,2582.5,2581.9,3.87311]
[1727035829934,2.4757,2582.4,2581.9,3.87311]
[1727035830082,2.4757,2582.4,2581.9,7.74615]
[1727035830083,6.34808,2582.4,2581.9,7.74615]
[1727035830280,2.4757,2582.4,2582.1,3.87281]
[1727035830705,0.10403447,2582.3,2581.9,7.74605]
[1727035830914,0.10403447,2582.3,2582.0,3.87288]
[1727035831290,6.43272519,2582.2,2581.7,3.87333]
[1727035831492,6.43272519,2582.2,2581.5,4.2691516]
[1727035831493,6.34852,2582.1,2581.5,4.2691516]
[1727035831688,3.97690743,2582.0,2581.5,3.87362]
[1727035832185,0.14368735,2582.0,2581.5,3.87362]
[1727035833032,0.14368735,2582.0,2581.6,6.87342]
[1727035837760,0.14368735,2582.0,2581.6,3.0]
[1727035838298,4.01666735,2582.0,2581.6,3.0]
[1727035838945,6.34886,2581.9,2581.3,3.87393]
[1727035839151,2.4757,2581.9,2581.4,6.87382]
[1727035839332,0.14311504,2581.8,2581.4,6.87382]
[1727035839507,0.14311504,2581.8,2581.4,3.0]
[1727035840549,0.14311504,2581.8,2581.3,7.74784]
[1727035841131,4.01642504,2581.8,2581.3,3.87392]
[1727035841332,4.51110332,2581.8,2581.3,7.74785]
[1727035841949,2.4757,2581.7,2581.3,7.74785]
[1727035842257,2.4757,2581.7,2581.3,3.87392]
[1727035842435,2.4757,2581.4,2581.1,7.35]
[1727035842609,3.38095402,2581.4,2580.9,7.74904]
[1727035842945,0.14304521,2581.3,2580.9,3.87451]
[1727035843244,0.14304521,2581.3,2580.7,3.87481]
[1727035843245,4.01706521,2581.3,2580.7,3.87481]
[1727035843552,2.4757,2581.2,2580.7,3.87481]
[1727035843924,0.14264027,2581.1,2580.7,3.87481]
[1727035844312,0.14264027,2581.1,2580.7,7.74965]
[1727035844847,0.14264027,2581.1,2580.8,3.0]
[1727035845356,0.14264027,2581.1,2580.7,3.87481]
[1727035847109,0.14264027,2581.1,2580.9,3.87458]
[1727035847307,0.14264027,2581.1,2580.7,3.87481]
[1727035848134,0.14264027,2581.1,2580.5,7.75017]
[1727035848340,2.4356,2581.0,2580.6,6.87506]
[1727035848509,0.1418345,2580.9,2580.6,6.87506]
[1727035849351,0.1418345,2580.9,2580.6,3.0]
[1727035850472,0.1418345,2580.9,2580.8,3.87476]
[1727035851667,0.1418345,2580.9,2580.8,9.15336]
[1727035851862,0.1418345,2580.9,2580.8,10.15857115]
[1727035852149,2.4356,2581.8,2581.6,3.87345]
[1727035852452,0.14201151,2581.7,2581.6,3.87345]
[1727035852657,2.4356,2581.8,2581.6,3.87345]
[1727035853014,0.14201151,2581.7,2581.4,10.30739519]
[1727035853346,2.4356,2581.8,2581.5,0.0774668]
[1727035853553,0.14218385,2581.6,2581.5,3.9511768]
[1727035853755,2.4356,2581.8,2581.5,3.9511768]
[1727035853930,0.14236552,2581.6,2581.5,3.87371]
[1727035854129,2.4356,2582.1,2581.7,3.87341]
[1727035854328,3.066434,2582.1,2581.7,3.87341]
[1727035854661,3.066434,2582.1,2581.8,3.87317]
[1727035854662,0.14236552,2582.0,2581.8,3.87317]
[1727035855020,0.14236552,2582.0,2581.7,3.87341]
[1727035855228,0.14236552,2582.0,2581.7,3.87331]
[1727035855455,0.14236552,2582.0,2581.7,7.74664]
[1727035855638,0.14236552,2582.0,2581.7,3.87331]
[1727035860549,0.14236552,2582.0,2581.8,2.55992519]
[1727035864829,0.14236552,2582.0,2581.9,3.87311]
[1727035865029,0.14236552,2582.0,2581.9,6.87311]
[1727035865229,9.8059,2582.5,2582.2,3.87254]
[1727035865447,2.3559,2582.5,2582.4,2.55992519]
[1727035867336,2.49849837,2582.5,2582.4,2.55992519]
[1727035868467,2.49849837,2582.5,2582.2,6.43256519]
[1727035873561,6.14505,2582.4,2582.0,2.55992519]
[1727035873967,0.14281934,2582.3,2582.0,2.55992519]
[1727035874476,4.01536934,2582.3,2582.0,2.55992519]
[1727035876738,0.14281934,2582.3,2582.2,2.55992519]
[1727035876940,0.14281934,2582.3,2582.2,6.68857771]
[1727035877176,2.2726,2583.0,2582.7,3.87181]
[1727035877377,2.2726,2583.0,2582.9,2.55992519]
[1727035877584,2.2726,2583.0,2582.9,6.43153519]
[1727035877792,0.0377987,2583.2,2582.9,2.55992519]
[1727035878780,1.04303157,2583.2,2582.9,2.55992519]
[1727035879182,4.91420157,2583.2,2582.9,2.55992519]
[1727035879482,3.87133,2583.1,2582.9,2.55992519]
[1727035879659,2.2726,2583.0,2582.9,2.55992519]
[1727035881541,0.0377987,2583.2,2583.1,3.87131]
[1727035883738,0.0377987,2583.2,2583.0,3.87133]
[1727035884187,0.13867228,2583.1,2583.0,6.87133]
[1727035885947,0.13867228,2583.1,2583.0,9.43125519]
[1727035889294,0.13867228,2583.1,2583.0,9.43138519]
[1727035890690,0.13867228,2583.1,2583.0,5.55992519]
[1727035896602,0.13867228,2583.1,2583.0,2.55992519]
[1727035896894,6.29181,2582.9,2582.5,7.35]
[1727035897056,6.93485823,2582.9,2582.4,2.55992519]
[1727035897257,3.87199,2582.7,2582.4,2.55992519]
[1727035897801,4.01119124,2582.6,2582.2,2.55992519]
[1727035898293,0.13904124,2582.6,2582.2,2.55992519]
[1727035898858,0.13904124,2582.6,2582.2,6.43254519]
[1727035900356,2.4201,2582.5,2582.2,6.43254519]
[1727035900798,0.13877503,2582.4,2582.2,6.43254519]
[1727035901703,0.13877503,2582.4,2582.2,2.55992519]
[1727035902519,0.13877503,2582.4,2582.2,6.43256519]
[1727035902723,2.4201,2582.8,2582.4,3.87234]
[1727035903011,2.4201,2582.8,2582.7,2.55992519]
[1727035903718,3.87172,2582.9,2582.7,2.55992519]
[1727035903873,11.32141,2583.1,2582.7,2.55992519]
[1727035903874,2.3726,2583.0,2582.7,2.55992519]
[1727035904270,6.87233087,2583.0,2582.7,2.55992519]
[1727035906972,3.87162,2582.9,2582.7,2.55992519]
[1727035907414,3.87162,2582.9,2582.5,6.43200519]
[1727035907909,3.87162,2582.9,2582.5,2.55992519]
[1727035908207,2.3726,2582.8,2582.3,2.55992519]
[1727035908423,3.05984009,2582.8,2582.3,2.55992519]
[1727035908723,3.87198,2582.7,2582.3,2.55992519]
[1727035912562,3.87292,2582.1,2581.7,2.73567247]
[1727035912830,2.3726,2582.0,2581.7,0.40407247]
[1727035913049,3.8732,2581.9,2581.4,6.43378519]
[1727035913186,3.8732,2581.9,2581.4,2.55992519]
[1727035913187,0.13839662,2581.8,2581.4,2.55992519]
[1727035914242,0.13839662,2581.8,2581.4,6.43377519]
[1727035914396,0.13839662,2581.8,2581.4,10.30755519]
[1727035914733,0.13839662,2581.8,2581.6,2.55992519]
[1727035915090,2.3726,2582.0,2581.6,2.55992519]
[1727035915314,0.13824241,2581.7,2581.6,2.55992519]
[1727035915631,2.3726,2582.0,2581.6,2.55992519]
[1727035915933,0.13824241,2581.9,2581.6,2.55992519]
[1727035922043,5.03703265,2581.9,2581.4,6.43378519]
[1727035922248,5.03703265,2581.9,2581.4,2.55992519]
[1727035922605,5.03703265,2581.9,2581.2,2.55992519]
[1727035922606,3.87363,2581.6,2581.2,2.55992519]
[1727035922965,0.13758337,2581.5,2581.2,6.43405519]
[1727035923307,6.24601,2581.7,2581.2,6.43405519]
[1727035923515,0.13757869,2581.4,2581.2,6.43405519]
[1727035923840,0.13752258,2581.3,2581.2,9.43405519]
[1727035924041,6.24601,2581.7,2581.2,9.43405519]
[1727035924243,0.13752258,2581.6,2581.2,9.43405519]
[1727035926542,3.87357,2581.6,2581.2,9.43405519]
[1727035926744,7.74722,2581.6,2581.2,5.55992519]
[1727035926944,0.13740102,2581.5,2581.2,5.55992519]
[1727035928440,0.13740102,2581.5,2581.4,8.81468519]
[1727035928629,3.87305,2582.0,2581.5,3.87371]
[1727035928852,0.13742438,2581.9,2581.5,3.87371]
[1727035929443,3.87333,2581.8,2581.4,4.94082519]
[1727035929645,7.74614,2582.0,2581.4,8.81467519]
[1727035929959,4.01055438,2581.9,2581.4,8.81467519]
[1727035931489,0.13742438,2581.9,2581.8,8.81408519]
[1727035931772,0.13742438,2581.9,2581.8,11.81408519]
[1727035931981,3.87191,2582.7,2582.2,2.3809]
[1727035932147,13.67867,2582.8,2582.4,2.55992519]
[1727035932148,2.3568,2582.8,2582.4,2.55992519]
[1727035932348,0.13746181,2582.6,2582.2,4.94082519]
[1727035932581,3.87223,2582.5,2582.0,2.55992519]
[1727035932751,2.3568,2582.4,2582.0,3.0]
[1727035933076,4.01020751,2582.3,2581.9,5.3809]
[1727035936583,4.01020751,2582.3,2581.9,3.0]
[1727035937869,4.01019751,2582.3,2581.9,3.0]
[1727035942744,3.87275,2582.2,2581.8,2.55992519]
[1727035942940,5.03412026,2582.3,2581.6,2.55992519]
[1727035942941,3.87297,2582.0,2581.6,2.55992519]
[1727035943547,0.13767685,2581.9,2581.6,2.55992519]
[1727035945797,4.01080685,2581.9,2581.6,2.55992519]
[1727035946755,0.13767685,2581.9,2581.6,2.55992519]
[1727035947860,0.13767685,2581.9,2581.6,2.63739502]
[1727035948060,2.3568,2582.1,2581.8,2.55992519]
[1727035948306,0.13753195,2582.0,2581.8,2.55992519]
[1727035949387,4.01052195,2582.0,2581.8,2.55992519]
[1727035950454,0.13753195,2582.0,2581.8,2.55992519]
[1727035950654,0.13753195,2582.0,2581.9,3.87311]
[1727035950861,2.4328,2582.3,2581.9,3.87311]
[1727035951068,0.13754128,2582.2,2581.9,3.87311]
[1727035951268,2.4328,2582.3,2581.9,3.87311]
[1727035951501,0.13765817,2582.2,2581.9,3.87311]
[1727035951867,2.4328,2582.3,2581.9,3.87311]
[1727035952070,0.13773765,2582.2,2581.9,3.87311]
[1727035952398,2.4328,2582.3,2581.9,3.87311]
[1727035952565,0.13773765,2582.1,2581.9,3.87311]
[1727035952767,2.4328,2582.3,2581.9,3.87311]
[1727035952999,0.13773765,2582.0,2581.9,3.87311]
[1727035953204,2.4328,2582.3,2581.9,3.87311]
[1727035953411,0.13773765,2582.0,2581.9,3.87311]
[1727035953597,2.4328,2582.3,2581.9,3.87311]
[1727035953797,0.137747,2582.0,2581.7,2.2591]
[1727035953994,4.195573,2582.3,2581.3,3.0]
[1727035953995,3.87312,2581.9,2581.4,3.39631095]
[1727035954203,6.30613,2581.8,2581.4,3.0]
[1727035954517,4.011257,2581.7,2581.2,4.66673605]
[1727035955410,4.011257,2581.7,2581.2,3.87409]
[1727035955614,4.011257,2581.7,2581.0,7.35]
[1727035955615,3.87375,2581.5,2581.0,7.35]
[1727035955780,6.30676,2581.4,2580.9,3.35295728]
[1727035955986,6.44427791,2581.4,2580.9,3.35295728]
[1727035956417,6.44427791,2581.4,2581.1,0.39665515]
[1727035956607,6.44427791,2581.4,2580.9,2.55992519]
[1727035956908,6.44427791,2581.4,2580.9,6.43452519]
[1727035958319,7.4760807,2581.4,2580.9,2.55992519]
[1727035958477,7.4760807,2581.4,2580.6,0.63476608]
[1727035958478,3.87444,2581.1,2580.6,0.63476608]
[1727035958668,6.44444314,2581.0,2580.7,0.39681845]
[1727035958873,2.95739714,2581.0,2580.5,6.83925654]
[1727035959116,2.56995314,2581.0,2580.7,2.55992519]
[1727035960285,2.4328,2581.0,2580.7,2.55992519]
[1727035960884,2.4328,2581.2,2580.9,2.55992519]
[1727035961084,3.87375,2581.5,2581.1,2.55992519]
[1727035961085,2.4328,2581.4,2581.1,2.55992519]
[1727035961283,6.30666,2581.4,2581.1,2.55992519]
[1727035961895,6.30666,2581.4,2580.9,2.55992519]
[1727035961896,3.87402,2581.3,2580.9,2.55992519]
[1727035962709,2.4328,2581.4,2580.9,2.55992519]
[1727035962882,6.30667,2581.4,2580.9,2.55992519]
[1727035963221,2.4328,2581.4,2581.1,2.55992519]
[1727035964830,6.30667,2581.4,2581.1,2.55992519]
[1727035965111,6.30667,2581.4,2580.9,2.55992519]
[1727035970918,3.87402,2581.3,2580.9,2.55992519]
[1727035972445,0.13690991,2581.2,2580.9,2.55992519]
[1727035972746,3.87402,2581.3,2580.9,2.55992519]
[1727035973040,0.13690991,2581.1,2581.0,2.55992519]
[1727035973339,0.13690055,2581.1,2581.0,2.55992519]
[1727035973709,3.87402,2581.3,2581.0,2.55992519]
[1727035973910,0.13690055,2581.1,2581.0,2.55992519]
[1727035974124,3.87402,2581.3,2581.0,2.55992519]
[1727035974347,0.13690055,2581.1,2580.8,6.13374]
[1727035974553,3.87402,2581.3,2581.0,1.18147113]
[1727035980321,6.30668,2581.4,2581.0,1.18147113]
[1727035981040,6.35437,2581.7,2581.2,1.18147113]
[1727035981376,6.35437,2581.7,2581.6,1.18147113]
[1727035981524,3.87312,2581.9,2581.6,1.18147113]
[1727035982247,7.74636,2581.9,2581.6,1.18147113]
[1727035982429,3.87327,2581.8,2581.4,3.87386]
[1727035982773,3.87327,2581.8,2581.3,2.55893516]
[1727035983263,3.87327,2581.8,2581.3,6.43287516]
[1727035984740,6.35396,2582.0,2581.7,2.55893516]
[1727035984942,2.4809,2582.0,2581.7,2.55893516]
[1727035985186,2.4809,2582.0,2581.5,12.76183516]
[1727035985337,2.4809,2582.0,2581.6,3.87354]
[1727035987306,0.13720925,2581.9,2581.6,3.87354]
[1727035989045,0.13720925,2581.9,2581.5,8.88816516]
[1727035989239,0.13720925,2581.9,2581.5,8.88815516]
[1727035989486,0.13720925,2581.9,2581.5,3.87362]
[1727035989639,5.04679418,2581.9,2581.3,8.88848516]
[1727035989843,6.34878,2581.8,2581.3,6.43288516]
[1727035990259,0.13753195,2581.7,2581.3,6.43288516]
[1727035990479,0.13753195,2581.7,2581.3,10.30682516]
[1727035990643,0.13759271,2581.6,2581.3,6.43287516]
[1727035991061,0.13759271,2581.5,2581.3,6.43287516]
[1727035991265,0.13759271,2581.5,2581.4,3.87386]
[1727035991487,2.4755,2581.8,2581.4,3.87386]
[1727035992117,0.13753661,2581.7,2581.4,3.87386]
[1727035992470,2.4755,2581.8,2581.5,3.87371]
[1727035992702,3.87319,2581.9,2581.5,3.87371]
[1727035993203,2.4755,2582.0,2581.5,6.43256516]
[1727035993204,0.1374805,2581.8,2581.5,6.43256516]
[1727035993365,2.4755,2582.0,2581.6,3.87355]
[1727035993561,0.13745384,2581.7,2581.6,3.87355]
[1727035993764,2.4755,2582.0,2581.7,3.87338]
[1727035995679,2.4755,2582.4,2582.0,3.87286]
[1727035995897,2.4755,2582.4,2582.1,6.43172516]
[1727035996907,2.4755,2582.7,2582.1,6.43172516]
[1727035997412,2.4755,2582.7,2582.3,6.43135516]
[1727035998183,2.4755,2582.7,2582.3,3.87242]
[1727035999009,4.242398,2582.7,2582.3,3.87242]
[1727035999311,2.4755,2582.4,2582.1,3.8728]
[1727035999864,2.4755,2582.4,2582.0,3.0]
[1727036001111,6.34792,2582.4,2582.0,3.0]
[1727036001272,7.369936,2582.4,2582.0,3.0]
[1727036001911,3.497516,2582.4,2582.0,3.0]
[1727036002281,0.13778107,2582.3,2582.0,3.0]
[1727036007487,0.13778107,2582.3,2581.7,2.4556]
[1727036007488,3.87268,2582.2,2581.7,5.01453516]
[1727036007692,4.90851311,2582.2,2581.8,3.0]
[1727036007888,0.13769694,2582.1,2581.8,3.0]
[1727036008335,2.2872,2582.0,2581.8,3.0]
[1727036009028,0.1376502,2581.9,2581.8,3.0]
[1727036009226,0.1376502,2581.9,2581.8,6.87326]
[1727036014933,0.1376502,2581.9,2581.8,3.0]
[1727036016329,0.1376502,2581.9,2581.7,1.18090031]
[1727036017953,0.1376502,2581.9,2581.8,3.0]
[1727036018168,0.1376502,2581.9,2581.8,6.87326]
[1727036018463,0.13768762,2581.9,2581.8,6.87326]
[1727036018614,10.03243,2582.3,2581.8,6.87326]
[1727036018814,0.76426497,2582.2,2582.0,1.18090031]
[1727036020428,0.76426497,2582.2,2581.8,9.43134976]
[1727036021657,0.76426497,2582.2,2581.9,3.87308]
[1727036021825,2.2872,2582.3,2581.9,3.87308]
[1727036024266,2.2872,2582.3,2581.8,5.55808976]
[1727036024552,2.2872,2582.3,2582.0,3.87288]
[1727036025164,2.2872,2582.3,2581.9,3.87311]
[1727036026003,2.2872,2582.3,2582.0,3.87296]
[1727036032394,0.13774372,2582.2,2582.0,3.87296]
[1727036032929,0.13774372,2582.1,2582.0,3.87296]
[1727036033286,2.2872,2582.3,2582.0,3.87296]
[1727036033489,0.13774372,2582.1,2581.8,9.43120976]
[1727036033734,2.2872,2582.3,2581.9,3.87309]
[1727036033934,0.13774372,2582.0,2581.9,3.87309]
[1727036034258,0.13774372,2582.0,2581.8,9.43120976]
[1727036034551,6.15983,2582.3,2581.8,6.43120976]
[1727036034693,0.13774372,2581.9,2581.8,6.43120976]
[1727036035025,6.15983,2582.3,2581.8,6.43120976]
[1727036035229,0.13775305,2581.9,2581.8,6.43120976]
[1727036035394,1.003223,2582.2,2581.8,6.82822064]
[1727036035735,0.13775305,2581.9,2581.8,6.43120976]
[1727036036025,6.15983,2582.3,2581.8,6.43120976]
[1727036036588,0.13771565,2582.2,2581.8,6.43120976]
[1727036036792,0.41912253,2582.2,2581.8,6.43120976]
[1727036036992,0.13771565,2582.1,2581.8,6.43120976]
[1727036037815,6.16877,2582.0,2581.5,8.89138976]
[1727036038022,6.30647162,2582.0,2581.6,0.39722586]
[1727036038203,7.36631444,2582.0,2581.7,0.39722586]
[1727036038407,3.49334444,2582.0,2581.6,3.87356]
[1727036038631,3.49334444,2582.0,2581.7,0.39725825]
[1727036038831,3.49334444,2582.0,2581.6,3.87356]
[1727036039040,3.49334444,2582.0,2581.7,0.39726955]
[1727036039193,3.49334444,2582.0,2581.6,3.87356]
[1727036039398,3.49334444,2582.0,2581.7,0.39730965]
[1727036039606,3.49334444,2582.0,2581.6,3.87356]
[1727036039812,3.49334444,2582.0,2581.7,0.3973091]
[1727036040037,3.49334444,2582.0,2581.6,3.87356]
[1727036040734,3.49334444,2582.0,2581.7,0.39733972]
[1727036041097,3.49334444,2582.0,2581.7,0.79467919]
[1727036041297,3.49334444,2582.0,2581.7,0.39733972]
[1727036042301,3.49334444,2582.0,2581.7,1.57818038]
[1727036044580,3.49334444,2582.0,2581.8,70.0]
[1727036044866,2.43350162,2582.0,2581.8,70.0]
[1727036047524,0.13770162,2582.0,2581.9,1.18084066]
[1727036047970,3.87282,2582.1,2581.9,1.18084066]
[1727036048172,0.13747723,2582.0,2581.9,1.18084066]
[1727036051760,0.13747723,2582.0,2581.9,3.63854066]
[1727036052297,6.18252,2582.3,2581.9,3.63854066]
[1727036052465,0.13758007,2582.0,2581.9,3.63854066]
[1727036052673,6.18252,2582.3,2581.9,3.63854066]
[1727036052996,0.13758007,2582.0,2581.9,7.51165066]
[1727036053165,6.18252,2582.3,2581.9,7.51165066]
[1727036053368,4.34328657,2582.6,2582.2,3.87266]
[1727036053574,2.3099,2582.6,2582.3,1.18084066]
[1727036057767,6.18197,2582.6,2582.2,3.87254]
[1727036059207,6.18197,2582.6,2582.1,1.18084066]
[1727036059495,10.05413,2582.6,2582.1,1.18084066]
[1727036059868,6.18197,2582.6,2582.1,1.18084066]
[1727036060258,10.05413,2582.6,2582.1,1.18084066]
[1727036061706,6.18197,2582.6,2582.1,1.18084066]
[1727036062061,3.87253,2582.3,2581.9,5.4577]
[1727036062309,3.87253,2582.3,2581.9,6.63854066]
[1727036062526,0.13783252,2582.2,2581.9,6.63854066]
[1727036062926,3.87253,2582.3,2582.0,0.39696026]
[1727036063092,7.74514,2582.3,2582.0,0.39696026]
[1727036063418,2.47240915,2582.2,2582.0,0.39696026]
[1727036063621,2.47240915,2582.2,2581.9,4.18084066]
[1727036065086,2.47240915,2582.2,2581.9,3.0]
[1727036065535,2.3346,2582.2,2581.9,3.0]
[1727036065827,0.13780915,2582.1,2581.9,3.0]
[1727036066344,6.20729,2582.2,2581.9,3.0]
[1727036066844,0.13780915,2582.1,2581.9,3.0]
[1727036067024,6.20729,2582.2,2581.9,3.0]
[1727036067343,0.13780915,2582.0,2581.9,3.0]
[1727036067552,6.20729,2582.2,2581.9,3.39693948]
[1727036067844,0.13790732,2582.1,2581.9,3.0]
[1727036068138,6.20729,2582.2,2581.9,3.0]
[1727036068644,2.3346,2583.0,2582.5,2.4997]
[1727036068858,2.3723987,2583.2,2582.8,1.18084066]
[1727036069152,2.3723987,2583.2,2583.0,1.18084066]
[1727036069153,0.0377987,2583.2,2583.0,1.18084066]
[1727036072148,0.0377987,2583.2,2582.9,2.4997]
[1727036072366,0.0377987,2583.2,2582.7,6.37156]
[1727036073973,0.66214857,2583.2,2582.7,6.37156]
[1727036075586,0.0377987,2583.2,2582.8,5.05249066]
[1727036075790,0.0377987,2583.2,2583.0,1.18084066]
[1727036075967,0.0377987,2583.2,2583.0,5.05229066]
[1727036076388,0.12905516,2583.1,2583.0,5.05229066]
[1727036078010,0.12905516,2583.1,2583.0,7.55199066]
[1727036079217,0.12905516,2583.1,2583.0,10.55199066]
[1727036079432,0.0377987,2583.2,2583.1,3.0]
[1727036079611,0.0377987,2583.2,2583.1,9.99841195]
[1727036079774,0.0377987,2583.2,2583.1,9.37101]
[1727036080213,0.0377987,2583.2,2583.1,10.55185066]
[1727036081595,0.0377987,2584.0,2583.8,3.87018]
[1727036081798,0.0377987,2584.0,2583.1,4.18084066]
[1727036081799,0.0377987,2584.0,2583.6,3.87045]
[1727036082098,0.0377987,2584.0,2583.4,3.87079]
[1727036082099,2.46031928,2583.9,2583.4,6.37047]
[1727036082300,2.46031928,2583.9,2583.6,5.05140066]
[1727036083729,0.12571928,2583.9,2583.8,5.05110066]
[1727036084028,0.12571928,2583.9,2583.8,1.18084066]
[1727036084401,0.12571928,2583.9,2583.7,7.74082]
[1727036084611,0.12571928,2583.9,2583.8,3.87026]
[1727036084828,0.12571928,2583.9,2583.7,3.87041]
[1727036085135,0.12571928,2583.9,2583.7,7.74071]
[1727036085489,0.12571928,2583.9,2583.7,7.74061]
[1727036086331,0.12571928,2583.9,2583.4,2.4997]
[1727036086332,2.45461928,2583.9,2583.5,3.87062]
[1727036086534,2.45461928,2583.9,2583.8,6.42471629]
[1727036086535,0.12571928,2583.9,2583.8,6.42471629]
[1727036086856,0.12571928,2583.9,2583.8,2.55445629]
[1727036087433,0.12571928,2583.9,2583.7,3.87033]
[1727036087800,0.12571928,2583.9,2583.7,7.74066]
[1727036088689,0.12571928,2583.9,2583.8,3.87026]
[1727036089102,0.12571928,2583.9,2583.5,2.55445629]
[1727036089103,0.12571928,2583.9,2583.5,6.42508629]
[1727036089640,0.12571928,2583.9,2583.6,3.87052]
[1727036089848,0.12571928,2583.9,2583.5,6.42508629]
[1727036091551,2.3289,2583.8,2583.5,6.42508629]
[1727036091899,0.1258552,2583.7,2583.2,12.20475629]
[1727036092105,6.19959,2583.6,2583.0,4.85475629]
[1727036092343,6.19959,2583.6,2583.0,2.55445629]
[1727036092344,3.87074,2583.5,2583.0,2.55445629]
[1727036092642,3.87074,2583.5,2583.0,6.42591629]
[1727036092813,0.1258552,2583.4,2583.1,3.87129]
[1727036093006,2.3289,2583.6,2583.1,3.87129]
[1727036093249,0.12575677,2583.5,2583.1,7.74258]
[1727036093475,0.12575677,2583.5,2583.2,6.42554629]
[1727036094639,0.12575677,2583.5,2583.2,2.55445629]
[1727036094940,0.12575677,2583.5,2583.3,3.87101]
[1727036095144,0.12575677,2583.5,2583.4,2.55445629]
[1727036095447,2.3289,2583.8,2583.4,2.55445629]
[1727036095448,6.19918,2583.8,2583.4,2.55445629]
[1727036095600,6.19918,2583.8,2583.3,3.87093]
[1727036095801,0.12572864,2583.7,2583.4,6.42524629]
[1727036096049,2.3289,2583.8,2583.4,6.42524629]
[1727036096244,0.12572864,2583.6,2583.4,6.42524629]
[1727036096539,2.3289,2583.8,2583.4,2.55445629]
[1727036096742,0.12572864,2583.5,2583.4,2.55445629]
[1727036096938,2.3289,2583.8,2583.4,2.55445629]
[1727036097153,0.12572864,2583.5,2583.4,2.55445629]
[1727036097621,2.3289,2583.8,2583.4,2.55445629]
[1727036097817,0.12572864,2583.7,2583.4,2.55445629]
[1727036098023,2.3289,2583.8,2583.4,2.55445629]
[1727036098223,0.12572864,2583.7,2583.4,2.55445629]
[1727036098736,0.12572864,2583.6,2583.4,2.55445629]
[1727036098938,2.3289,2583.8,2583.4,2.55445629]
[1727036099613,0.12572864,2583.7,2583.4,2.55445629]
[1727036099945,2.3289,2583.8,2583.4,2.55445629]
[1727036100464,2.3289,2583.4,2582.9,8.72627629]
[1727036100698,2.3289,2583.4,2582.8,3.0]
[1727036100699,3.87102,2583.3,2582.8,3.0]
[1727036100835,3.99670648,2583.3,2582.7,17.64807629]
[1727036101171,0.12568648,2583.3,2582.8,3.87174]
[1727036101338,0.12568648,2583.3,2582.8,7.74341]
[1727036101539,0.12568648,2583.3,2582.9,3.87158]
[1727036101928,0.12568648,2583.3,2582.9,6.42603629]
[1727036102527,0.12568648,2583.3,2582.9,2.55445629]
[1727036102744,0.70587678,2583.3,2582.9,2.55445629]
[1727036103269,0.12568648,2583.3,2582.9,2.55445629]
[1727036104830,0.12568648,2583.3,2582.9,6.42602629]
[1727036105069,0.12568648,2583.3,2582.9,2.55445629]
[1727036105333,7.86788648,2583.3,2582.7,6.42633629]
[1727036105558,2.3385,2583.2,2582.7,6.42633629]
[1727036106158,0.12568648,2583.1,2582.7,6.42633629]
[1727036107812,0.12568648,2583.1,2582.7,2.55445629]
[1727036107988,3.87197,2582.7,2582.4,0.40393428]
[1727036108347,3.87225,2582.5,2582.0,6.42738629]
[1727036108585,2.46399428,2582.6,2582.0,6.42738629]
[1727036108886,6.21065,2582.6,2582.0,10.30018629]
[1727036109090,6.21065,2582.6,2582.1,3.8728]
[1727036109446,6.21065,2582.6,2582.0,6.42730629]
[1727036109746,6.21065,2582.6,2582.0,10.30017629]